[Event "Early-Titled-Tuesday-Blitz-October-24-2023"]
[Site "Chess.com"]
[Date "2023.10.24"]
[Round "2"]
[White "Keeper0416"]
[Black "js20000"]
[Result "0-1"]
[WhiteElo "2587"]
[BlackElo "2917"]
[TimeControl "180+1"]
[EndTime "8:14:02 PDT"]
[Termination "js20000 won by resignation"]

1. d4 {[%clk 0:03:00.9]} 1... e6 {[%clk 0:02:58.8]} 2. c4 {[%clk 0:03:00.3]}
2... b6 {[%clk 0:02:59]} 3. Nf3 {[%clk 0:02:55.5]} 3... Bb7 {[%clk 0:02:58.1]}
4. a3 {[%clk 0:02:53.4]} 4... f5 {[%clk 0:02:57.8]} 5. Nc3 {[%clk 0:02:51.3]}
5... Nf6 {[%clk 0:02:58.2]} 6. d5 {[%clk 0:02:50]} 6... Bd6 {[%clk 0:02:54.9]}
7. g3 {[%clk 0:02:49.9]} 7... O-O {[%clk 0:02:53.2]} 8. Bg2 {[%clk 0:02:49.2]}
8... e5 {[%clk 0:02:53.6]} 9. O-O {[%clk 0:02:48.2]} 9... a6 {[%clk 0:02:52.8]}
10. b4 {[%clk 0:02:47.7]} 10... a5 {[%clk 0:02:51.3]} 11. Rb1 {[%clk 0:02:45.8]}
11... axb4 {[%clk 0:02:51.1]} 12. axb4 {[%clk 0:02:46.7]} 12... e4 {[%clk
0:02:46.2]} 13. Nd4 {[%clk 0:02:46.2]} 13... g6 {[%clk 0:02:46.2]} 14. Ndb5
{[%clk 0:02:41.2]} 14... Be5 {[%clk 0:02:40.6]} 15. f4 {[%clk 0:02:07.1]} 15...
Bxc3 {[%clk 0:02:37.3]} 16. Nxc3 {[%clk 0:02:05]} 16... d6 {[%clk 0:02:37.9]}
17. Be3 {[%clk 0:02:05.1]} 17... Nbd7 {[%clk 0:02:37.6]} 18. Bd4 {[%clk
0:02:05.8]} 18... Ba6 {[%clk 0:02:32.5]} 19. Qb3 {[%clk 0:02:01.5]} 19... Qe7
{[%clk 0:02:31.3]} 20. e3 {[%clk 0:02:00.5]} 20... Ra7 {[%clk 0:02:29.6]} 21.
Ra1 {[%clk 0:01:50.8]} 21... Rfa8 {[%clk 0:02:29.8]} 22. b5 {[%clk 0:01:47.1]}
22... Bc8 {[%clk 0:02:28.5]} 23. Qb2 {[%clk 0:01:46.2]} 23... Nc5 {[%clk
0:02:23.3]} 24. Rxa7 {[%clk 0:01:45.3]} 24... Rxa7 {[%clk 0:02:24.2]} 25. Ra1
{[%clk 0:01:45.6]} 25... Rxa1+ {[%clk 0:02:13]} 26. Qxa1 {[%clk 0:01:46.5]}
26... Nfd7 {[%clk 0:02:07.9]} 27. Qa7 {[%clk 0:01:45.3]} 27... Bb7 {[%clk
0:02:03.6]} 28. Qa3 {[%clk 0:01:40.8]} 28... Qd8 {[%clk 0:02:02.3]} 29. Na4
{[%clk 0:01:40.9]} 29... Qa8 {[%clk 0:02:01.7]} 30. Bxc5 {[%clk 0:01:28.2]}
30... Nxc5 {[%clk 0:02:00.9]} 31. Qc3 {[%clk 0:01:28.7]} 31... Nxa4 {[%clk
0:01:52.7]} 32. Qf6 {[%clk 0:01:25]} 32... Qf8 {[%clk 0:01:50.9]} 33. Qg5 {[%clk
0:01:21.9]} 33... Nc5 {[%clk 0:01:49.4]} 34. h4 {[%clk 0:01:22.2]} 34... Kg7
{[%clk 0:01:47.3]} 35. h5 {[%clk 0:01:21.9]} 35... Qf6 {[%clk 0:01:47.5]} 0-1

[Event "Early-Titled-Tuesday-Blitz-October-24-2023"]
[Site "Chess.com"]
[Date "2023.10.24"]
[Round "2"]
[White "Akylbek2021"]
[Black "Khromkin"]
[Result "1-0"]
[WhiteElo "2270"]
[BlackElo "2487"]
[TimeControl "180+1"]
[EndTime "8:14:06 PDT"]
[Termination "Akylbek2021 won by checkmate"]

1. d4 {[%clk 0:03:00.9]} 1... d5 {[%clk 0:02:59.2]} 2. c4 {[%clk 0:03:00.9]}
2... dxc4 {[%clk 0:02:59.5]} 3. e3 {[%clk 0:03:00.8]} 3... e5 {[%clk 0:02:58.6]}
4. Bxc4 {[%clk 0:02:59.7]} 4... exd4 {[%clk 0:02:59.5]} 5. exd4 {[%clk
0:02:59.9]} 5... Nf6 {[%clk 0:02:59.1]} 6. Nf3 {[%clk 0:03:00]} 6... Bd6 {[%clk
0:02:59.7]} 7. O-O {[%clk 0:03:00]} 7... O-O {[%clk 0:02:59.9]} 8. h3 {[%clk
0:03:00]} 8... h6 {[%clk 0:02:58.1]} 9. Nc3 {[%clk 0:03:00.5]} 9... Nc6 {[%clk
0:02:58.5]} 10. Re1 {[%clk 0:02:59.1]} 10... Re8 {[%clk 0:02:53]} 11. a3 {[%clk
0:02:54.9]} 11... Bf5 {[%clk 0:02:50.5]} 12. b4 {[%clk 0:02:51]} 12... a6 {[%clk
0:02:48.5]} 13. Bb2 {[%clk 0:02:50.7]} 13... Qd7 {[%clk 0:02:47.9]} 14. Bf1
{[%clk 0:02:32.2]} 14... Rad8 {[%clk 0:02:45.5]} 15. d5 {[%clk 0:02:18.8]} 15...
Ne5 {[%clk 0:02:42.6]} 16. Nd4 {[%clk 0:02:13.2]} 16... Bh7 {[%clk 0:01:59.9]}
17. Rc1 {[%clk 0:01:58.4]} 17... Ng6 {[%clk 0:01:44.3]} 18. g3 {[%clk 0:01:32]}
18... Rxe1 {[%clk 0:01:40.4]} 19. Qxe1 {[%clk 0:01:32.9]} 19... Be5 {[%clk
0:01:33.2]} 20. Nf3 {[%clk 0:01:09.2]} 20... Bxc3 {[%clk 0:01:24.8]} 21. Qxc3
{[%clk 0:01:09.1]} 21... Nxd5 {[%clk 0:01:25.2]} 22. Qxg7# {[%clk 0:01:08.9]}
1-0

[Event "Early-Titled-Tuesday-Blitz-October-24-2023"]
[Site "Chess.com"]
[Date "2023.10.24"]
[Round "2"]
[White "Giorno"]
[Black "InitiatingASC"]
[Result "1/2-1/2"]
[WhiteElo "2560"]
[BlackElo "2336"]
[TimeControl "180+1"]
[EndTime "8:14:16 PDT"]
[Termination "Game drawn by agreement"]

1. d4 {[%clk 0:02:41.4]} 1... Nf6 {[%clk 0:02:58.7]} 2. Bg5 {[%clk 0:02:26.7]}
2... c5 {[%clk 0:02:56.3]} 3. Bxf6 {[%clk 0:02:22.2]} 3... gxf6 {[%clk
0:02:54.9]} 4. d5 {[%clk 0:02:19.7]} 4... e6 {[%clk 0:02:47.3]} 5. Nc3 {[%clk
0:02:18.5]} 5... e5 {[%clk 0:02:31.9]} 6. e4 {[%clk 0:02:12.8]} 6... d6 {[%clk
0:02:31.7]} 7. Bb5+ {[%clk 0:02:07.4]} 7... Nd7 {[%clk 0:02:28]} 8. Nge2 {[%clk
0:02:07]} 8... a6 {[%clk 0:02:28.4]} 9. Bxd7+ {[%clk 0:02:05.5]} 9... Bxd7
{[%clk 0:02:26.3]} 10. Ng3 {[%clk 0:02:06.4]} 10... Qc8 {[%clk 0:02:19.3]} 11.
h3 {[%clk 0:02:02.8]} 11... f5 {[%clk 0:02:17.8]} 12. Nh5 {[%clk 0:01:55.8]}
12... Be7 {[%clk 0:02:02]} 13. Qf3 {[%clk 0:01:47.4]} 13... f4 {[%clk
0:02:01.2]} 14. g3 {[%clk 0:01:46.6]} 14... fxg3 {[%clk 0:01:55.5]} 15. fxg3
{[%clk 0:01:44.2]} 15... Rg8 {[%clk 0:01:54.9]} 16. g4 {[%clk 0:01:42.5]} 16...
Bh4+ {[%clk 0:01:52]} 17. Kf1 {[%clk 0:01:31.6]} 17... Qd8 {[%clk 0:01:51.6]}
18. Rh2 {[%clk 0:01:24.7]} 18... Qg5 {[%clk 0:01:49.4]} 19. Rf2 {[%clk
0:01:22.6]} 19... O-O-O {[%clk 0:01:24.4]} 20. Rg2 {[%clk 0:01:15.7]} 1/2-1/2

[Event "Early-Titled-Tuesday-Blitz-October-24-2023"]
[Site "Chess.com"]
[Date "2023.10.24"]
[Round "2"]
[White "Levanzovsky"]
[Black "Orujov2008"]
[Result "0-1"]
[WhiteElo "2481"]
[BlackElo "2753"]
[TimeControl "180+1"]
[EndTime "8:14:19 PDT"]
[Termination "Orujov2008 won by resignation"]

1. e4 {[%clk 0:03:00.9]} 1... e5 {[%clk 0:02:59.8]} 2. Nf3 {[%clk 0:02:54.5]}
2... Nf6 {[%clk 0:03:00]} 3. d3 {[%clk 0:02:51.2]} 3... Nc6 {[%clk 0:02:58.7]}
4. g3 {[%clk 0:02:47.1]} 4... d5 {[%clk 0:02:56.6]} 5. exd5 {[%clk 0:02:46]}
5... Nxd5 {[%clk 0:02:56.5]} 6. Bg2 {[%clk 0:02:46.6]} 6... Be7 {[%clk
0:02:54.4]} 7. O-O {[%clk 0:02:46.2]} 7... O-O {[%clk 0:02:54.5]} 8. Re1 {[%clk
0:02:45.9]} 8... f6 {[%clk 0:02:54.4]} 9. a3 {[%clk 0:02:45.9]} 9... a5 {[%clk
0:02:50.9]} 10. d4 {[%clk 0:02:43.1]} 10... Bg4 {[%clk 0:02:28]} 11. h3 {[%clk
0:02:41.5]} 11... Bh5 {[%clk 0:01:51]} 12. g4 {[%clk 0:02:40.6]} 12... Bf7
{[%clk 0:01:51.7]} 13. dxe5 {[%clk 0:02:32.6]} 13... fxe5 {[%clk 0:01:47.8]} 14.
Nxe5 {[%clk 0:02:32.2]} 14... Nxe5 {[%clk 0:01:44.5]} 15. Rxe5 {[%clk
0:02:33.1]} 15... c6 {[%clk 0:01:44.8]} 16. Re1 {[%clk 0:02:08.2]} 16... Qb6
{[%clk 0:01:38.6]} 17. Nd2 {[%clk 0:01:58.9]} 17... Bh4 {[%clk 0:01:34.2]} 18.
Nf3 {[%clk 0:01:50.8]} 18... Bxf2+ {[%clk 0:01:28.1]} 19. Kh1 {[%clk 0:01:44.6]}
19... Bxe1 {[%clk 0:01:28.4]} 20. Qxe1 {[%clk 0:01:45.5]} 20... Rae8 {[%clk
0:01:28.8]} 21. Qg3 {[%clk 0:01:43.9]} 21... Ne3 {[%clk 0:01:22.4]} 22. Bxe3
{[%clk 0:01:42.6]} 22... Rxe3 {[%clk 0:01:21.3]} 23. Qf2 {[%clk 0:01:24.8]}
23... Bd5 {[%clk 0:01:16.6]} 0-1

[Event "Early-Titled-Tuesday-Blitz-October-24-2023"]
[Site "Chess.com"]
[Date "2023.10.24"]
[Round "2"]
[White "carokannlover213"]
[Black "Logman74"]
[Result "1-0"]
[WhiteElo "2724"]
[BlackElo "2433"]
[TimeControl "180+1"]
[EndTime "8:14:29 PDT"]
[Termination "carokannlover213 won by resignation"]

1. e4 {[%clk 0:03:00.9]} 1... c5 {[%clk 0:02:59.6]} 2. Nf3 {[%clk 0:03:00.6]}
2... d6 {[%clk 0:03:00.1]} 3. d4 {[%clk 0:03:00.3]} 3... cxd4 {[%clk 0:02:59.9]}
4. Nxd4 {[%clk 0:03:01.2]} 4... Nf6 {[%clk 0:03:00]} 5. Nc3 {[%clk 0:03:01.7]}
5... a6 {[%clk 0:03:00.5]} 6. h3 {[%clk 0:02:53.8]} 6... e6 {[%clk 0:03:00.2]}
7. g4 {[%clk 0:02:53.5]} 7... d5 {[%clk 0:03:00.2]} 8. exd5 {[%clk 0:02:52.2]}
8... Nxd5 {[%clk 0:02:59.6]} 9. Nde2 {[%clk 0:02:52.7]} 9... Bb4 {[%clk
0:02:59.2]} 10. Bd2 {[%clk 0:02:44.8]} 10... O-O {[%clk 0:02:57.3]} 11. Nxd5
{[%clk 0:02:42.9]} 11... Qxd5 {[%clk 0:02:51.8]} 12. Bxb4 {[%clk 0:02:41.2]}
12... Qxh1 {[%clk 0:02:51.3]} 13. Bxf8 {[%clk 0:02:41.3]} 13... Nc6 {[%clk
0:02:31.7]} 14. Bc5 {[%clk 0:02:38.3]} 14... e5 {[%clk 0:02:32.1]} 15. Qd3
{[%clk 0:02:34.2]} 15... e4 {[%clk 0:02:19]} 16. Qe3 {[%clk 0:02:16.3]} 16...
Be6 {[%clk 0:02:01.6]} 17. Ng3 {[%clk 0:02:12.7]} 17... Qg1 {[%clk 0:01:51.3]}
18. f4 {[%clk 0:01:49.4]} 18... Qh2 {[%clk 0:01:44.8]} 19. Qf2 {[%clk
0:01:46.8]} 19... Qxf2+ {[%clk 0:01:44.4]} 20. Kxf2 {[%clk 0:01:44.3]} 20... Rc8
{[%clk 0:01:40.8]} 21. c3 {[%clk 0:01:40.8]} 21... Na5 {[%clk 0:01:18.2]} 22.
Bb6 {[%clk 0:01:36.7]} 22... Nc4 {[%clk 0:01:17.3]} 23. Bxc4 {[%clk 0:01:35.7]}
23... Rxc4 {[%clk 0:01:17.9]} 24. Bd4 {[%clk 0:01:35.7]} 24... Bd5 {[%clk
0:01:12.8]} 25. Ke3 {[%clk 0:01:35.5]} 25... g6 {[%clk 0:01:12.2]} 26. Nxe4
{[%clk 0:01:34.8]} 26... Kf8 {[%clk 0:01:09.9]} 27. Nf6 {[%clk 0:01:34.8]} 27...
Be6 {[%clk 0:01:08.7]} 28. Nxh7+ {[%clk 0:01:33.3]} 28... Ke7 {[%clk 0:01:09.2]}
29. Ng5 {[%clk 0:01:30.1]} 29... Kd6 {[%clk 0:01:02.9]} 30. Nxe6 {[%clk
0:01:29.6]} 1-0

[Event "Early-Titled-Tuesday-Blitz-October-24-2023"]
[Site "Chess.com"]
[Date "2023.10.24"]
[Round "2"]
[White "gpsji27"]
[Black "sjoerd893"]
[Result "0-1"]
[WhiteElo "2279"]
[BlackElo "2516"]
[TimeControl "180+1"]
[EndTime "8:14:32 PDT"]
[Termination "sjoerd893 won by resignation"]

1. d4 {[%clk 0:02:57.8]} 1... d5 {[%clk 0:02:56.5]} 2. Nf3 {[%clk 0:02:57]} 2...
Nf6 {[%clk 0:02:56.4]} 3. c4 {[%clk 0:02:53.8]} 3... c6 {[%clk 0:02:56.6]} 4.
Nc3 {[%clk 0:02:53.9]} 4... e6 {[%clk 0:02:56.4]} 5. Bg5 {[%clk 0:02:53.7]} 5...
h6 {[%clk 0:02:54.7]} 6. Bh4 {[%clk 0:02:52.6]} 6... dxc4 {[%clk 0:02:52.9]} 7.
e4 {[%clk 0:02:51.8]} 7... g5 {[%clk 0:02:52]} 8. Bg3 {[%clk 0:02:50.7]} 8... b5
{[%clk 0:02:52.6]} 9. e5 {[%clk 0:02:50]} 9... Nd5 {[%clk 0:02:50.4]} 10. a4
{[%clk 0:02:50.1]} 10... Nxc3 {[%clk 0:02:38.6]} 11. bxc3 {[%clk 0:02:49]} 11...
Bb7 {[%clk 0:02:39.3]} 12. h4 {[%clk 0:02:30.3]} 12... g4 {[%clk 0:02:37.7]} 13.
Nd2 {[%clk 0:02:30.6]} 13... h5 {[%clk 0:02:19.1]} 14. Rb1 {[%clk 0:02:29.6]}
14... a6 {[%clk 0:02:11.4]} 15. Nxc4 {[%clk 0:02:26.8]} 15... Nd7 {[%clk
0:02:05.6]} 16. Ne3 {[%clk 0:02:23.2]} 16... Qa5 {[%clk 0:01:59.9]} 17. Qc2
{[%clk 0:02:15.6]} 17... c5 {[%clk 0:01:56.6]} 18. axb5 {[%clk 0:02:09.9]} 18...
cxd4 {[%clk 0:01:55.2]} 19. Nd1 {[%clk 0:02:09.9]} 19... Rc8 {[%clk 0:01:39.8]}
20. bxa6 {[%clk 0:02:06.8]} 20... Bxa6 {[%clk 0:01:39.5]} 21. Bxa6 {[%clk
0:01:58.6]} 21... Qxa6 {[%clk 0:01:40.4]} 22. Qe2 {[%clk 0:01:27.1]} 22... Qxe2+
{[%clk 0:01:30.9]} 23. Kxe2 {[%clk 0:01:28]} 23... dxc3 {[%clk 0:01:31.4]} 24.
Kd3 {[%clk 0:01:27]} 24... c2 {[%clk 0:01:28.5]} 25. Rc1 {[%clk 0:01:20.6]}
25... cxd1=Q+ {[%clk 0:01:28.1]} 26. Rhxd1 {[%clk 0:01:21.5]} 26... Rxc1 {[%clk
0:01:18.8]} 27. Rxc1 {[%clk 0:01:22.4]} 27... Ke7 {[%clk 0:01:08.4]} 28. Bf4
{[%clk 0:01:21]} 28... Bh6 {[%clk 0:01:07.7]} 0-1

[Event "Early-Titled-Tuesday-Blitz-October-24-2023"]
[Site "Chess.com"]
[Date "2023.10.24"]
[Round "2"]
[White "dawid498"]
[Black "Chernov_Mikhail"]
[Result "1-0"]
[WhiteElo "2697"]
[BlackElo "2388"]
[TimeControl "180+1"]
[EndTime "8:14:34 PDT"]
[Termination "dawid498 won by resignation"]

1. e4 {[%clk 0:03:00.9]} 1... c5 {[%clk 0:02:59.2]} 2. Nf3 {[%clk 0:03:00.8]}
2... Nc6 {[%clk 0:02:59.6]} 3. d4 {[%clk 0:03:00.8]} 3... cxd4 {[%clk
0:03:00.5]} 4. Nxd4 {[%clk 0:03:01.7]} 4... Nf6 {[%clk 0:02:59.6]} 5. Nc3 {[%clk
0:03:02.2]} 5... d6 {[%clk 0:02:59.6]} 6. Nb3 {[%clk 0:02:51.6]} 6... g6 {[%clk
0:02:58.5]} 7. Be2 {[%clk 0:02:51.3]} 7... Bg7 {[%clk 0:02:58.7]} 8. O-O {[%clk
0:02:52.2]} 8... O-O {[%clk 0:02:58.9]} 9. Re1 {[%clk 0:02:52.8]} 9... a6 {[%clk
0:02:53.9]} 10. Bf1 {[%clk 0:02:52.8]} 10... b5 {[%clk 0:02:52.7]} 11. a4 {[%clk
0:02:52.9]} 11... b4 {[%clk 0:02:52.9]} 12. Nd5 {[%clk 0:02:53.4]} 12... Bb7
{[%clk 0:02:45.9]} 13. a5 {[%clk 0:02:53.5]} 13... Nxd5 {[%clk 0:02:40.4]} 14.
exd5 {[%clk 0:02:54.4]} 14... Ne5 {[%clk 0:02:40.6]} 15. Ra4 {[%clk 0:02:48.7]}
15... Qc7 {[%clk 0:02:13.9]} 16. Rxb4 {[%clk 0:02:47.9]} 16... Rfc8 {[%clk
0:02:12.4]} 17. f4 {[%clk 0:02:34]} 17... Nd7 {[%clk 0:02:10.3]} 18. Rxe7 {[%clk
0:02:33.9]} 18... Rab8 {[%clk 0:02:01.1]} 19. c3 {[%clk 0:02:22.8]} 19... Bf6
{[%clk 0:01:58.3]} 20. Re1 {[%clk 0:02:19.9]} 20... Nc5 {[%clk 0:01:58.7]} 21.
Be3 {[%clk 0:02:01.1]} 21... Re8 {[%clk 0:01:31.1]} 22. Nxc5 {[%clk 0:01:56.8]}
22... dxc5 {[%clk 0:01:32]} 23. Rb6 {[%clk 0:01:57.3]} 23... Bg7 {[%clk
0:01:17.4]} 24. d6 {[%clk 0:01:52.2]} 24... Qd7 {[%clk 0:01:16.2]} 25. Bxc5
{[%clk 0:01:50.1]} 25... Rbc8 {[%clk 0:01:11]} 26. Bf2 {[%clk 0:01:21.6]} 26...
Rxe1 {[%clk 0:01:03.2]} 27. Qxe1 {[%clk 0:01:22.5]} 27... Re8 {[%clk 0:01:01.2]}
28. Rxb7 {[%clk 0:01:20.8]} 1-0

[Event "Early-Titled-Tuesday-Blitz-October-24-2023"]
[Site "Chess.com"]
[Date "2023.10.24"]
[Round "2"]
[White "IljaZaragatski"]
[Black "Hooded_Old_Man"]
[Result "1/2-1/2"]
[WhiteElo "2637"]
[BlackElo "2367"]
[TimeControl "180+1"]
[EndTime "8:14:34 PDT"]
[Termination "Game drawn by repetition"]

1. c4 {[%clk 0:03:00.9]} 1... e6 {[%clk 0:02:59.5]} 2. g3 {[%clk 0:03:00.8]}
2... d5 {[%clk 0:02:59.8]} 3. Bg2 {[%clk 0:03:01.7]} 3... Nf6 {[%clk 0:02:59.7]}
4. Nf3 {[%clk 0:03:01.8]} 4... Be7 {[%clk 0:03:00.3]} 5. O-O {[%clk 0:03:00.7]}
5... O-O {[%clk 0:03:00.4]} 6. b3 {[%clk 0:03:00.3]} 6... a5 {[%clk 0:03:00.4]}
7. Nc3 {[%clk 0:02:59.8]} 7... Bd7 {[%clk 0:02:58.5]} 8. Bb2 {[%clk 0:02:56.7]}
8... a4 {[%clk 0:02:58.6]} 9. Nxa4 {[%clk 0:02:42.1]} 9... Bxa4 {[%clk
0:02:57.7]} 10. bxa4 {[%clk 0:02:43]} 10... c6 {[%clk 0:02:56.7]} 11. Qc2 {[%clk
0:02:34.1]} 11... Qa5 {[%clk 0:02:56.9]} 12. Rfb1 {[%clk 0:02:27.9]} 12... Qxa4
{[%clk 0:02:52.8]} 13. Qxa4 {[%clk 0:02:26.9]} 13... Rxa4 {[%clk 0:02:53.7]} 14.
cxd5 {[%clk 0:02:24.4]} 14... exd5 {[%clk 0:02:53.7]} 15. Bc3 {[%clk 0:02:12.4]}
15... b5 {[%clk 0:02:51.1]} 16. d3 {[%clk 0:01:59.1]} 16... Nbd7 {[%clk
0:02:49.8]} 17. Rc1 {[%clk 0:01:53.7]} 17... Rfa8 {[%clk 0:02:46.8]} 18. Rc2
{[%clk 0:01:53.6]} 18... b4 {[%clk 0:02:41.4]} 19. Bxf6 {[%clk 0:01:26.2]} 19...
Bxf6 {[%clk 0:02:40.7]} 20. Rb1 {[%clk 0:01:25.2]} 20... c5 {[%clk 0:02:15.9]}
21. Ne1 {[%clk 0:01:11.2]} 21... Rxa2 {[%clk 0:02:15.5]} 22. Bxd5 {[%clk
0:01:07.9]} 22... Rxc2 {[%clk 0:02:14.8]} 23. Nxc2 {[%clk 0:01:08.8]} 23... Re8
{[%clk 0:02:08.5]} 24. Kf1 {[%clk 0:01:05.6]} 24... g6 {[%clk 0:02:06.5]} 25. e3
{[%clk 0:00:49.7]} 25... Kg7 {[%clk 0:02:06.5]} 26. Ke2 {[%clk 0:00:50.1]} 26...
h5 {[%clk 0:02:05.8]} 27. f4 {[%clk 0:00:48.9]} 27... Nb6 {[%clk 0:02:04.4]} 28.
Bb3 {[%clk 0:00:48.5]} 28... Ra8 {[%clk 0:02:01.8]} 29. e4 {[%clk 0:00:46.2]}
29... Bc3 {[%clk 0:02:00.7]} 30. Ne3 {[%clk 0:00:39.1]} 30... Bd4 {[%clk
0:01:55.6]} 31. Nc2 {[%clk 0:00:38.7]} 31... Bc3 {[%clk 0:01:51.4]} 32. Ne3
{[%clk 0:00:38.7]} 32... Bd4 {[%clk 0:01:47.4]} 33. Nc2 {[%clk 0:00:38.8]} 33...
Bc3 {[%clk 0:01:47.6]} 1/2-1/2

[Event "Early-Titled-Tuesday-Blitz-October-24-2023"]
[Site "Chess.com"]
[Date "2023.10.24"]
[Round "2"]
[White "SONOFHOLYGOD"]
[Black "zeebraa"]
[Result "1-0"]
[WhiteElo "2510"]
[BlackElo "2262"]
[TimeControl "180+1"]
[EndTime "8:14:34 PDT"]
[Termination "SONOFHOLYGOD won by resignation"]

1. e4 {[%clk 0:03:00.9]} 1... c5 {[%clk 0:02:58.6]} 2. d4 {[%clk 0:03:00.8]}
2... cxd4 {[%clk 0:02:58.6]} 3. c3 {[%clk 0:03:01.5]} 3... dxc3 {[%clk
0:02:59.2]} 4. Bc4 {[%clk 0:03:00.8]} 4... Nc6 {[%clk 0:02:59.3]} 5. Nf3 {[%clk
0:02:59.9]} 5... d6 {[%clk 0:02:59.9]} 6. O-O {[%clk 0:03:00]} 6... Nf6 {[%clk
0:03:00.3]} 7. Nxc3 {[%clk 0:02:53.1]} 7... Bg4 {[%clk 0:03:00.3]} 8. Qb3 {[%clk
0:02:43.1]} 8... e6 {[%clk 0:02:29]} 9. Qxb7 {[%clk 0:02:39.7]} 9... Rc8 {[%clk
0:02:22.2]} 10. Bb5 {[%clk 0:02:21.8]} 10... Qd7 {[%clk 0:02:19.9]} 11. Qa6
{[%clk 0:02:17.7]} 11... Bxf3 {[%clk 0:02:18.6]} 12. gxf3 {[%clk 0:02:17.4]}
12... Be7 {[%clk 0:02:09.5]} 13. Rd1 {[%clk 0:02:12.2]} 13... O-O {[%clk
0:02:09]} 14. Bf4 {[%clk 0:02:05.3]} 14... Qc7 {[%clk 0:01:57.1]} 15. Rac1
{[%clk 0:02:02.1]} 15... e5 {[%clk 0:01:44.7]} 16. Nd5 {[%clk 0:01:53.9]} 16...
Nxd5 {[%clk 0:01:37.1]} 17. exd5 {[%clk 0:01:51.6]} 17... exf4 {[%clk
0:01:28.8]} 18. Rxc6 {[%clk 0:01:45.6]} 18... Qd7 {[%clk 0:01:21.8]} 19. Rdc1
{[%clk 0:01:38.4]} 19... Rxc6 {[%clk 0:01:20.5]} 20. dxc6 {[%clk 0:01:38.4]}
20... Qc7 {[%clk 0:01:07.7]} 21. Qb7 {[%clk 0:01:33.5]} 21... Rc8 {[%clk
0:01:00.7]} 22. Ba6 {[%clk 0:01:25.1]} 22... Qxb7 {[%clk 0:01:00.8]} 23. cxb7
{[%clk 0:01:11.7]} 23... Rxc1+ {[%clk 0:01:01.4]} 24. Kg2 {[%clk 0:01:10.5]} 1-0

[Event "Early-Titled-Tuesday-Blitz-October-24-2023"]
[Site "Chess.com"]
[Date "2023.10.24"]
[Round "2"]
[White "OhanyanEminChess"]
[Black "FoxOnTheRun97"]
[Result "1-0"]
[WhiteElo "2811"]
[BlackElo "2544"]
[TimeControl "180+1"]
[EndTime "8:14:46 PDT"]
[Termination "OhanyanEminChess won by resignation"]

1. d4 {[%clk 0:02:52.9]} 1... Nf6 {[%clk 0:02:59.7]} 2. c4 {[%clk 0:02:53.1]}
2... e6 {[%clk 0:02:59.4]} 3. Nf3 {[%clk 0:02:53.6]} 3... d5 {[%clk 0:02:59.7]}
4. Nc3 {[%clk 0:02:53.5]} 4... Be7 {[%clk 0:02:58]} 5. Bf4 {[%clk 0:02:50.9]}
5... O-O {[%clk 0:02:57.3]} 6. e3 {[%clk 0:02:51.6]} 6... b6 {[%clk 0:02:54.7]}
7. Bd3 {[%clk 0:02:49.5]} 7... dxc4 {[%clk 0:02:54.3]} 8. Bxc4 {[%clk
0:02:50.4]} 8... Bb7 {[%clk 0:02:53.4]} 9. O-O {[%clk 0:02:50.3]} 9... c5 {[%clk
0:02:53]} 10. dxc5 {[%clk 0:02:43.4]} 10... Bxc5 {[%clk 0:02:52.5]} 11. a3
{[%clk 0:02:40.5]} 11... a5 {[%clk 0:02:50.7]} 12. Na4 {[%clk 0:02:21.5]} 12...
Nbd7 {[%clk 0:02:29.7]} 13. Nxc5 {[%clk 0:02:09.9]} 13... Nxc5 {[%clk
0:02:30.6]} 14. Qxd8 {[%clk 0:02:06.9]} 14... Raxd8 {[%clk 0:02:10.6]} 15. Bc7
{[%clk 0:02:07.8]} 15... Rc8 {[%clk 0:02:04.7]} 16. Bd6 {[%clk 0:01:17.2]} 16...
Rfd8 {[%clk 0:02:02.6]} 17. Be7 {[%clk 0:01:17]} 17... Rd7 {[%clk 0:01:51.9]}
18. Bxf6 {[%clk 0:01:15.9]} 18... gxf6 {[%clk 0:01:52.8]} 19. Bb5 {[%clk
0:01:14]} 19... Rd5 {[%clk 0:01:31.2]} 20. Rac1 {[%clk 0:01:12.5]} 20... Ne4
{[%clk 0:01:05.5]} 21. Rxc8+ {[%clk 0:01:10.6]} 21... Bxc8 {[%clk 0:01:06.4]}
22. Bc6 {[%clk 0:01:08.3]} 22... Nd2 {[%clk 0:00:50.6]} 23. Bxd5 {[%clk
0:01:05.3]} 23... Nxf1 {[%clk 0:00:50.3]} 24. Bc4 {[%clk 0:01:03.8]} 1-0

[Event "Early-Titled-Tuesday-Blitz-October-24-2023"]
[Site "Chess.com"]
[Date "2023.10.24"]
[Round "2"]
[White "alfianasybullina"]
[Black "CristianS27"]
[Result "0-1"]
[WhiteElo "2289"]
[BlackElo "2521"]
[TimeControl "180+1"]
[EndTime "8:14:51 PDT"]
[Termination "CristianS27 won by resignation"]

1. d4 {[%clk 0:03:00.9]} 1... Nf6 {[%clk 0:03:00]} 2. Nf3 {[%clk 0:03:00.3]}
2... g6 {[%clk 0:02:59.8]} 3. Bf4 {[%clk 0:02:57.6]} 3... c5 {[%clk 0:02:53.4]}
4. d5 {[%clk 0:02:52.4]} 4... Qb6 {[%clk 0:02:53.3]} 5. b3 {[%clk 0:02:18.4]}
5... Bg7 {[%clk 0:02:47.6]} 6. Be5 {[%clk 0:02:10.3]} 6... O-O {[%clk
0:02:43.7]} 7. c4 {[%clk 0:02:08.7]} 7... d6 {[%clk 0:02:40.2]} 8. Bc3 {[%clk
0:02:06.5]} 8... e6 {[%clk 0:02:37.4]} 9. dxe6 {[%clk 0:02:03]} 9... Bxe6 {[%clk
0:02:38.3]} 10. e3 {[%clk 0:02:02.3]} 10... Nc6 {[%clk 0:02:37.1]} 11. Be2
{[%clk 0:02:00.2]} 11... Rad8 {[%clk 0:02:36]} 12. O-O {[%clk 0:01:52.8]} 12...
d5 {[%clk 0:02:36.3]} 13. cxd5 {[%clk 0:01:52]} 13... Bxd5 {[%clk 0:02:35.5]}
14. Nbd2 {[%clk 0:01:51.1]} 14... Rfe8 {[%clk 0:02:10.4]} 15. Qc1 {[%clk
0:01:45.9]} 15... Nb4 {[%clk 0:01:39.5]} 16. Nc4 {[%clk 0:01:34]} 16... Qe6
{[%clk 0:01:37.1]} 17. Rd1 {[%clk 0:01:28]} 17... Ne4 {[%clk 0:01:32.7]} 18.
Bxg7 {[%clk 0:01:23.3]} 18... Kxg7 {[%clk 0:01:33.6]} 19. Qb2+ {[%clk 0:01:20]}
19... Kg8 {[%clk 0:01:33]} 20. a3 {[%clk 0:01:12.4]} 20... Nc6 {[%clk
0:01:30.5]} 21. h3 {[%clk 0:01:10.8]} 21... b5 {[%clk 0:01:10.5]} 22. Ncd2
{[%clk 0:01:05.5]} 22... Nxf2 {[%clk 0:01:08.8]} 23. e4 {[%clk 0:00:56]} 23...
Nxd1 {[%clk 0:01:00.2]} 24. exd5 {[%clk 0:00:54.6]} 24... Qe3+ {[%clk
0:00:59.8]} 0-1